bitfinex-derivatives/quotes_SOLF0:USTF0_20250114
["timestamp","ask_amount","ask_price","bid_price","bid_amount"]
[1736877738721,2.6777,186.83,186.79,2.6782]
[1736877739024,5.56,186.83,186.75,12.38800422]
[1736877739225,2.6778,186.82,186.78,2.6782]
[1736877739724,2.6778,186.82,186.75,12.38800422]
[1736877740225,8.2378,186.83,186.75,12.38800422]
[1736877741224,5.56,186.83,186.75,12.38800422]
[1736877741424,5.56,186.83,186.81,2.6778]
[1736877742924,5.56,186.83,186.75,12.38800422]
[1736877743125,8.2377,186.83,186.8,2.678]
[1736877744129,5.56,186.83,186.8,2.678]
[1736877747736,5.56,186.83,186.82,2.6778]
[1736877747940,5.56,186.87,186.78,12.38800422]
[1736877748334,2.6773,186.86,186.78,12.38800422]
[1736877749137,5.56,186.87,186.78,12.38800422]
[1736877749339,5.56,186.87,186.81,12.38800422]
[1736877749537,5.56,186.87,186.82,2.6777]
[1736877749837,2.6771,186.88,186.81,12.38800422]
[1736877750238,8.7648,186.89,186.84,2.6774]
[1736877750442,21.15280422,186.89,186.78,12.38800422]
[1736877750734,21.15280422,186.89,186.76,29.87261805]
[1736877751039,2.6778,186.83,186.76,29.87261805]
[1736877751436,2.6778,186.83,186.75,113.17278756]
[1736877751938,2.6778,186.83,186.8,2.678]
[1736877753139,2.6776,186.84,186.81,2.6779]
[1736877753337,196.5643,186.88,186.76,7.46815451]
[1736877753943,2.6774,186.85,186.79,2.6781]
[1736877754140,2.6774,186.85,186.76,7.46815451]
[1736877754337,196.5643,186.88,186.76,7.46815451]
[1736877754542,196.5643,186.88,186.76,49.77809294]
[1736877754938,2.6773,186.86,186.83,2.6776]
[1736877755339,5.56,186.87,186.85,2.6773]
[1736877758639,5.56,186.87,186.78,62.14857604]
[1736877759051,2.6776,186.84,186.81,2.6778]
[1736877762745,2.6774,186.85,186.8,2.678]
[1736877763047,12.38800422,186.84,186.76,29.87261805]
[1736877763242,17.94800422,186.87,186.76,42.26062227]
[1736877763649,17.94800422,186.87,186.76,12.38800422]
[1736877764145,2.6774,186.85,186.76,12.38800422]
[1736877764446,5.56,186.87,186.77,4.97081738]
[1736877764849,8.2372,186.87,186.83,2.6776]
[1736877765038,5.56,186.87,186.77,4.97081738]
[1736877765443,2.6777,186.83,186.8,2.6781]
[1736877766147,5.56,186.87,186.78,7.92796491]
[1736877766445,7.92796491,186.85,186.8,7.92796491]
[1736877767242,10.60536491,186.85,186.82,2.6778]
[1736877768448,2.6774,186.85,186.82,2.6778]
[1736877770955,16.16506491,186.87,186.84,2.6774]
[1736877771549,2.6772,186.86,186.84,2.6774]
[1736877772942,2.6772,186.86,186.8,7.92796491]
[1736877773144,2.6772,186.86,186.83,2.6776]
[1736877774349,13.48796491,186.87,186.79,7.92796491]
[1736877774554,7.92796491,186.85,186.78,7.92796491]
[1736877774950,7.92796491,186.83,186.77,10.14665451]
[1736877775152,7.92796491,186.81,186.77,7.46815451]
[1736877775350,7.92796491,186.79,186.77,7.46815451]
[1736877775555,7.92796491,186.79,186.73,57.68853673]
[1736877776251,13.48796491,186.79,186.73,49.76057182]
[1736877776753,2.6786,186.77,186.74,2.6789]
[1736877777554,2.6786,186.77,186.73,2.679]
[1736877777956,2.6786,186.77,186.7,9.55477499]
[1736877778157,2.6786,186.77,186.72,2.6792]
[1736877778356,2.6786,186.77,186.7,9.55477499]
[1736877778958,2.6786,186.77,186.73,2.679]
[1736877780049,5.56,186.79,186.69,7.46815451]
[1736877780255,17.19317765,186.78,186.69,7.46815451]
[1736877781054,2.6791,186.74,186.66,19.86403216]
[1736877781258,17.19317765,186.78,186.66,19.86403216]
[1736877781759,2.6785,186.77,186.69,12.39587765]
[1736877782155,2.6785,186.77,186.73,2.679]
[1736877782556,2.6787,186.76,186.73,2.679]
[1736877783959,8.2383,186.79,186.76,2.6786]
[1736877784160,5.56,186.79,186.69,12.39587765]
[1736877784563,2.6787,186.76,186.73,2.679]
[1736877784955,5.56,186.79,186.73,2.679]
[1736877785159,2.6785,186.77,186.73,2.679]
[1736877787262,2.6785,186.77,186.74,2.6788]
[1736877787469,12.39587765,186.82,186.69,12.39587765]
[1736877787763,5.56,186.81,186.69,12.39587765]
[1736877787965,2.6783,186.79,186.76,2.6786]
[1736877796072,2.6784,186.78,186.76,2.6786]
[1736877798362,2.6784,186.78,186.75,2.6788]
[1736877799867,2.6788,186.75,186.72,2.6791]
[1736877800072,1.5709,186.79,186.73,7.93216699]
[1736877800267,1.5618,186.8,186.75,7.93216699]
[1736877800468,5.56,186.81,186.75,7.93216699]
[1736877800673,2.6781,186.8,186.77,2.6784]
[1736877803375,2.6783,186.79,186.77,2.6784]
[1736877806176,2.6783,186.79,186.75,2.6787]
[1736877806371,2.6784,186.78,186.75,2.6787]
[1736877806570,2.6784,186.78,186.72,7.93216699]
[1736877806870,2.6783,186.79,186.76,2.6786]
[1736877807075,13.49216699,186.81,186.74,7.93216699]
[1736877807569,13.49216699,186.83,186.76,7.93216699]
[1736877808284,13.49216699,186.83,186.78,2.6783]
[1736877808285,2.6781,186.8,186.78,2.6783]
[1736877808483,2.6781,186.8,186.76,7.93216699]
[1736877810080,2.6777,186.83,186.78,7.93216699]
[1736877810280,195.0,186.86,186.82,7.93216699]
[1736877810782,195.0,186.86,186.83,2.6776]
[1736877811989,197.6774,186.86,186.82,10.60986699]
[1736877812383,197.6774,186.86,186.82,7.93216699]
[1736877812583,197.6774,186.86,186.83,2.6776]
[1736877815190,195.0,186.86,186.85,2.6774]
[1736877816587,195.0,186.86,186.82,7.93216699]
[1736877816787,195.0,186.86,186.84,2.6775]
[1736877817190,2.6771,186.87,186.84,2.6775]
[1736877817892,7.93216699,186.89,186.84,2.6775]
[1736877817893,2.677,186.88,186.84,2.6775]
[1736877818688,2.6771,186.87,186.84,2.6775]
[1736877818889,7.93216699,186.89,186.83,2.6776]
[1736877819192,2.677,186.88,186.83,2.6776]
[1736877819393,7.93216699,186.89,186.83,2.6776]
[1736877819587,7.93216699,186.87,186.82,2.6778]
[1736877819788,2.6775,186.84,186.8,7.93216699]
[1736877820389,2.6774,186.85,186.82,2.6778]
[1736877822493,2.6774,186.85,186.8,7.93216699]
[1736877822690,7.93216699,186.87,186.76,1.6422]
[1736877822889,7.93216699,186.89,186.82,7.93216699]
[1736877823394,2.677,186.88,186.85,2.6773]
[1736877824595,2.6771,186.87,186.84,2.6775]
[1736877825389,2.6771,186.87,186.85,2.6774]
[1736877826391,2.6771,186.87,186.82,7.93216699]
[1736877826598,2.6771,186.87,186.84,2.6775]
[1736877829899,2.6771,186.87,186.85,2.6773]
[1736877831599,7.93216699,186.87,186.81,7.93216699]
[1736877831901,7.93216699,186.85,186.82,2.6777]
[1736877832296,10.60966699,186.85,186.82,2.6777]
[1736877833101,2.6775,186.85,186.79,7.93216699]
[1736877833296,2.6775,186.85,186.83,2.6776]
[1736877833496,7.93216699,186.87,186.83,2.6776]
[1736877833695,2.6773,186.86,186.83,2.6776]
[1736877834303,2.6773,186.86,186.81,7.93216699]
[1736877834501,2.6773,186.86,186.84,2.6775]
[1736877835502,2.6774,186.85,186.82,2.6777]
[1736877835701,7.93216699,186.87,186.8,7.93216699]
[1736877835898,13.49216699,186.89,186.82,7.93216699]
[1736877836397,2.6771,186.87,186.84,2.6775]
[1736877837098,2.6771,186.87,186.85,2.6773]
[1736877837304,4.8555,186.93,186.86,7.93216699]
[1736877838003,2.6765,186.92,186.88,2.6769]
[1736877838202,2.6765,186.92,186.86,7.93216699]
[1736877838601,2.6765,186.92,186.88,2.6768]
[1736877839298,2.6765,186.92,186.89,2.6768]
[1736877842102,2.6765,186.91,186.89,2.6768]
[1736877844302,2.6765,186.91,186.88,2.6769]
[1736877844605,7.93216699,186.9,186.83,7.93216699]
[1736877844799,7.93216699,186.88,186.81,7.93216699]
[1736877845006,2.6771,186.87,186.84,2.6774]
[1736877845208,7.93216699,186.88,186.81,7.93216699]
[1736877846109,2.6771,186.87,186.83,2.6776]
[1736877846709,2.6772,186.86,186.83,2.6776]
[1736877846911,7.93216699,186.84,186.8,2.678]
[1736877847509,2.6777,186.83,186.77,7.93216699]
[1736877847706,7.93216699,186.84,186.79,2.6781]
[1736877847907,7.93216699,186.84,186.79,7.93216699]
[1736877848105,4.9664,186.86,186.79,7.93216699]
[1736877848106,12.89856699,186.86,186.79,7.93216699]
[1736877848611,2.6774,186.85,186.82,2.6776]
[1736877848911,12.89856699,186.86,186.79,7.93216699]
[1736877849106,7.93216699,186.82,186.77,7.93216699]
[1736877849307,7.93216699,186.82,186.75,7.93216699]
[1736877849701,10.60996699,186.82,186.79,2.6782]
[1736877850202,10.60996699,186.82,186.78,2.6783]
[1736877850604,7.93216699,186.82,186.78,2.6783]
[1736877850806,7.93216699,186.82,186.75,7.93216699]
[1736877851006,7.93216699,186.8,186.75,7.93216699]
[1736877851209,2.6783,186.79,186.75,7.93216699]
[1736877851414,2.6783,186.79,186.76,2.6786]
[1736877852008,2.6784,186.78,186.75,10.61096699]
[1736877852209,7.93216699,186.78,186.73,7.93216699]
[1736877852717,2.6786,186.77,186.74,2.6788]
[1736877853819,2.6789,186.75,186.71,10.61146699]
[1736877854311,2.6789,186.75,186.71,7.93216699]
[1736877854511,10.61086699,186.76,186.72,2.6792]
[1736877855114,7.93216699,186.78,186.71,7.93216699]
[1736877855320,13.49216699,186.8,186.73,7.93216699]
[1736877855611,7.93216699,186.82,186.75,7.93216699]
[1736877855817,10.60996699,186.82,186.79,2.6782]
[1736877856512,7.93216699,186.82,186.79,2.6782]
[1736877857518,7.93216699,186.82,186.77,7.93216699]
[1736877857715,7.93216699,186.82,186.75,7.93216699]
[1736877858113,2.6782,186.8,186.75,7.93216699]
[1736877858921,10.61036699,186.8,186.76,2.6786]
[1736877859118,2.6782,186.79,186.76,2.6786]
[1736877859927,7.93216699,186.82,186.75,7.93216699]
[1736877860119,16.63076699,186.86,186.79,7.93216699]
[1736877860422,11.07076699,186.86,186.81,7.93216699]
[1736877860922,7.93216699,186.9,186.7,5.56]
[1736877861222,7.93216699,186.9,186.84,7.93216699]
[1736877861921,2.677,186.88,186.84,10.60956699]
[1736877862117,2.677,186.88,186.84,7.93216699]
[1736877862519,2.677,186.88,186.84,10.60966699]
[1736877863021,7.93216699,186.9,186.84,7.93216699]
[1736877863218,13.49216699,186.91,186.84,7.93216699]
[1736877863419,13.49216699,186.91,186.86,7.93216699]
[1736877863618,16.16876699,186.91,186.88,2.6769]
[1736877864022,16.16876699,186.91,186.86,7.93216699]
[1736877864322,8.2366,186.91,186.86,7.93216699]
[1736877864627,8.2366,186.91,186.87,2.677]
[1736877865421,2.6766,186.91,186.87,2.677]
[1736877865625,10.60846699,186.93,186.88,7.93216699]
[1736877866325,2.6763,186.93,186.88,7.93216699]
[1736877866820,2.6764,186.92,186.89,2.6767]
[1736877868526,2.6768,186.9,186.86,2.6771]
[1736877868725,7.93216699,186.91,186.84,7.93216699]
[1736877868926,7.93216699,186.89,186.84,7.93216699]
[1736877869227,10.60906699,186.89,186.85,2.6773]
[1736877869431,10.60906699,186.89,186.84,7.93216699]
[1736877870926,2.6769,186.89,186.84,7.93216699]
[1736877871224,2.6767,186.9,186.86,2.6772]
[1736877872627,7.93216699,186.91,186.84,7.93216699]
[1736877872828,2.677,186.88,186.84,7.93216699]
[1736877874131,2.677,186.88,186.85,2.6773]
[1736877874629,2.677,186.88,186.84,7.93216699]
[1736877874830,2.677,186.88,186.84,10.60956699]
[1736877875435,7.93216699,186.87,186.84,2.6774]
[1736877875628,10.60926699,186.87,186.84,2.6774]
[1736877876130,2.6773,186.86,186.83,2.6776]
[1736877877831,10.60926699,186.87,186.82,2.6777]
[1736877878030,10.60926699,186.87,186.81,7.93216699]
[1736877878435,7.93216699,186.87,186.79,7.93216699]
[1736877878635,7.93216699,186.85,186.79,7.93216699]
[1736877878831,7.93216699,186.85,186.76,100.78060239]
[1736877879033,2.6778,186.83,186.8,2.678]
[1736877879530,2.6778,186.83,186.77,7.93216699]
[1736877879531,7.93216699,186.86,186.79,7.93216699]
[1736877880428,2.6775,186.84,186.81,2.6778]
[1736877881331,7.93216699,186.86,186.79,7.93216699]
[1736877881332,2.6774,186.85,186.82,2.6778]
[1736877881532,7.93216699,186.86,186.79,7.93216699]
[1736877882537,2.6775,186.84,186.81,2.6778]
[1736877885131,10.60966699,186.84,186.81,2.6778]
[1736877885337,2.6777,186.83,186.78,7.93216699]
[1736877885536,7.93216699,186.84,186.78,7.93216699]
[1736877886237,5.038,186.92,186.8,7.93216699]
[1736877886536,7.93216699,186.88,186.8,7.93216699]
[1736877886932,7.93216699,186.86,186.8,7.93216699]
[1736877887234,7.93216699,186.86,186.78,7.93216699]
[1736877888039,7.93216699,186.84,186.78,7.93216699]
[1736877888537,7.93216699,186.82,186.74,7.93216699]
[1736877888738,7.93216699,186.78,186.72,7.93216699]
[1736877889143,10.61066699,186.78,186.75,2.6788]
[1736877890537,7.93216699,186.78,186.75,2.6788]
[1736877890941,7.93216699,186.78,186.76,2.6786]
[1736877893042,10.61066699,186.78,186.74,2.6789]
[1736877893342,10.61066699,186.78,186.69,100.82282051]
[1736877893541,10.61066699,186.78,186.71,7.93216699]
[1736877893942,10.61066699,186.78,186.74,2.6789]
[1736877894440,7.93216699,186.75,186.65,17.02576331]
[1736877894737,7.93216699,186.71,186.65,17.02576331]
[1736877894940,7.93216699,186.71,186.65,7.46815451]
[1736877895142,10.61166699,186.71,186.65,7.46815451]
[1736877895344,7.93216699,186.71,186.65,7.46815451]
[1736877895644,7.93216699,186.71,186.68,2.6797]
[1736877897443,7.93216699,186.71,186.69,2.6796]
[1736877897744,7.93216699,186.73,186.66,7.93216699]
[1736877898042,7.93216699,186.73,186.68,7.93216699]
[1736877898843,7.93216699,186.73,186.7,2.6794]
[1736877901343,7.93216699,186.73,186.68,7.93216699]
[1736877901545,7.93216699,186.73,186.72,2.6792]
[1736877902542,7.93216699,186.73,186.71,2.6793]
[1736877903939,407.64951183,186.96,186.72,7.93216699]
[1736877904143,7.93216699,186.78,186.72,7.93216699]
[1736877904341,10.5115,186.84,186.72,7.93216699]
[1736877904548,10.61036699,186.79,186.72,7.93216699]
[1736877905544,10.61036699,186.79,186.75,2.6787]
[1736877905750,7.93216699,186.79,186.72,7.93216699]
[1736877906752,10.61036699,186.79,186.76,2.6786]
[1736877907949,4.9515,186.84,186.66,100.83641782]
[1736877908155,18.44366699,186.84,186.76,7.93216699]
[1736877908353,4.9515,186.84,186.8,7.93216699]
[1736877908549,5.56,186.85,186.83,2.6776]
[1736877908744,5.56,186.9,186.82,7.93216699]
[1736877908951,7.93216699,186.89,186.82,7.93216699]
[1736877909147,7.93216699,186.9,186.84,7.93216699]
[1736877909348,13.01246699,186.91,186.84,7.93216699]
[1736877909747,7.93216699,186.91,186.86,2.6772]
[1736877910055,7.93216699,186.91,186.84,7.93216699]
[1736877910351,7.93216699,186.91,186.86,7.93216699]
[1736877910857,5.56,186.93,186.9,2.6766]
[1736877911155,7.93216699,186.93,186.9,2.6766]
[1736877911343,2.6759,186.95,186.9,2.6766]
[1736877911541,5.56,186.96,186.9,2.6766]
[1736877912348,5.56,186.96,186.84,12.37544109]
[1736877912557,12.37544109,186.94,186.81,12.37544109]
[1736877913553,2.6765,186.91,186.84,2.6774]
[1736877913754,5.56,186.96,186.81,12.37544109]
[1736877913954,12.37544109,186.95,186.81,12.37544109]
[1736877914558,2.6761,186.94,186.81,12.37544109]
[1736877914752,2.6761,186.94,186.84,12.37544109]
[1736877915953,12.37544109,186.95,186.84,12.37544109]
[1736877915954,2.6764,186.92,186.84,12.37544109]
[1736877916452,12.37544109,186.95,186.81,12.37544109]
[1736877916648,12.37544109,186.92,186.81,12.37544109]
[1736877917049,2.6768,186.9,186.85,2.6772]
[1736877917656,12.37544109,186.92,186.81,12.37544109]
[1736877917860,12.37544109,186.92,186.78,12.37544109]
[1736877918262,2.677,186.88,186.78,12.37544109]
[1736877918465,17.93544109,186.89,186.77,3.2581]
[1736877918662,10.4231,186.88,186.77,3.2581]
[1736877918966,2.6774,186.85,186.77,3.2581]
[1736877919163,12.37544109,186.86,186.77,3.2581]
[1736877919464,2.6776,186.84,186.75,12.37544109]
[1736877920166,2.6778,186.82,186.78,2.6783]
[1736877921364,2.6777,186.83,186.79,2.6782]
[1736877921562,12.37544109,186.86,186.74,9.55304621]
[1736877922170,2.6777,186.83,186.79,2.6781]
[1736877923066,2.6777,186.83,186.78,2.6784]
[1736877923267,12.37544109,186.86,186.74,9.55304621]
[1736877923764,2.6781,186.8,186.74,9.55304621]
[1736877925165,2.6781,186.8,186.76,2.6785]
[1736877925367,5.56,186.81,186.74,9.55304621]
[1736877926972,5.56,186.81,186.78,2.6782]
[1736877927967,5.56,186.81,186.74,9.55304621]
[1736877928370,2.6781,186.8,186.74,9.55304621]
[1736877928569,2.6781,186.8,186.76,2.6785]
[1736877929071,8.238,186.81,186.77,2.6784]
[1736877929271,8.238,186.81,186.74,9.55304621]
[1736877930074,5.56,186.81,186.74,9.55304621]
[1736877930970,5.56,186.81,186.79,2.6782]
[1736877931171,12.37544109,186.86,186.75,12.37544109]
[1736877931371,5.56,186.86,186.78,12.37544109]
[1736877931570,195.0,186.94,186.81,12.37544109]
[1736877931770,5.56,186.92,186.81,12.37544109]
[1736877932167,5.56,186.92,186.86,2.6771]
[1736877932768,2.6767,186.9,186.87,2.677]
[1736877932965,17.93544109,186.93,186.87,2.677]
[1736877933365,17.93544109,186.93,186.82,3.2876]
[1736877933564,195.0,186.94,186.84,12.37544109]
[1736877934176,195.0,186.94,186.87,2.6771]
[1736877935271,12.37544109,186.93,186.82,3.2876]
[1736877935573,12.37544109,186.93,186.86,2.6772]
[1736877935769,12.37544109,186.93,186.82,1.6899]
[1736877935971,12.37544109,186.93,186.81,12.37544109]
[1736877936173,12.37544109,186.9,186.78,12.37544109]
[1736877936377,2.6772,186.87,186.83,2.6775]
[1736877936770,2.6774,186.85,186.78,12.37544109]
[1736877936969,5.56,186.88,186.81,2.6779]
[1736877937372,5.56,186.88,186.74,9.55304621]
[1736877937373,2.6779,186.82,186.75,12.37544109]
[1736877937575,2.6779,186.82,186.78,2.6783]
[1736877937773,7.61898169,186.95,186.75,12.37544109]
[1736877937967,7.61898169,186.95,186.88,2.6768]
[1736877938173,12.37544109,186.94,186.81,12.37544109]
[1736877939173,12.37544109,186.94,186.89,2.6767]
[1736877940070,12.37544109,186.94,186.81,12.37544109]
[1736877940276,12.37544109,186.94,186.87,2.677]
[1736877941079,2.6766,186.91,186.88,2.6769]
[1736877941474,7.61898169,186.95,186.84,12.37544109]
[1736877942378,7.61898169,186.95,186.85,3.1413]
[1736877943075,10.29488169,186.95,186.85,3.1413]
[1736877944872,10.29488169,186.95,186.91,2.6764]
[1736877945076,2.6759,186.95,186.91,2.6764]
[1736877945583,5.6,186.98,186.89,2.6767]
[1736877945781,12.37544109,186.96,186.84,12.37544109]
[1736877946183,2.6766,186.91,186.87,2.677]
[1736877946578,2.6766,186.91,186.84,12.37544109]
[1736877946784,2.6766,186.91,186.88,2.6769]
[1736877950483,12.37544109,186.96,186.84,12.37544109]
[1736877950686,195.0,186.97,186.87,12.37544109]
[1736877950983,17.45654109,186.99,186.87,12.37544109]
[1736877951185,23.05654109,186.99,186.87,12.37544109]
[1736877951583,2.6755,186.98,186.95,2.6759]
[1736877951987,17.97544109,187.02,186.9,12.37544109]
[1736877952186,2.6751,187.01,186.98,2.6754]
[1736877952785,8.275,187.02,186.98,2.6754]
[1736877952987,5.6,187.04,186.99,2.6752]
[1736877953188,12.37544109,187.05,186.99,2.6752]
[1736877953388,2.6748,187.03,186.93,12.37544109]
[1736877954079,17.97544109,187.05,186.93,12.37544109]
[1736877954486,2.6749,187.03,186.99,2.6753]
[1736877955284,2.6747,187.04,187.01,2.675]
[1736877955591,10.5447,187.07,186.96,12.37544109]
[1736877955983,2.6745,187.06,186.96,12.37544109]
[1736877957083,2.6745,187.06,187.02,2.6749]
[1736877958292,12.37544109,187.08,186.96,12.37544109]
[1736877958496,2.6742,187.08,187.05,2.6745]
[1736877958691,12.37544109,187.11,186.99,12.37544109]
[1736877958890,2.6737,187.11,187.03,2.6748]
[1736877959092,2.6737,187.11,187.0,1.6375]
[1736877959297,195.0,187.15,187.02,12.37544109]
[1736877959596,17.25724109,187.16,187.02,12.37544109]
[1736877960093,2.6735,187.13,187.08,2.674]
[1736877960295,17.25724109,187.16,187.02,12.37544109]
[1736877960689,2.6732,187.14,187.1,2.6738]
[1736877960990,17.25724109,187.16,187.02,12.37544109]
[1736877961195,2.6738,187.1,187.02,12.37544109]
[1736877961495,12.37544109,187.13,187.02,12.37544109]
[1736877961695,2.6737,187.11,187.07,2.6742]
[1736877961997,12.37544109,187.15,187.02,12.37544109]
[1736877962392,2.6736,187.12,187.08,2.6741]
[1736877962587,12.37544109,187.15,187.02,12.37544109]
[1736877962793,2.6732,187.14,187.09,2.6738]
[1736877962993,2.6732,187.14,187.02,12.37544109]
[1736877963492,12.37544109,187.15,187.02,12.37544109]
[1736877963493,2.6735,187.13,187.08,2.674]
[1736877963794,12.37544109,187.15,187.02,12.37544109]
[1736877963994,2.6738,187.11,187.02,12.37544109]
[1736877964496,2.6738,187.11,187.06,2.6743]
[1736877964794,12.37544109,187.12,187.0,1.6375]
[1736877964995,12.37544109,187.09,186.96,31.49041805]
[1736877965300,2.6742,187.07,186.99,12.37544109]
[1736877965594,5.62,187.14,187.02,12.37544109]
[1736877965900,5.62,187.14,187.05,12.37544109]
[1736877966398,4.8818,187.16,187.05,12.37544109]
[1736877966887,2.6735,187.13,187.09,2.6738]
[1736877967093,4.8818,187.16,187.05,12.37544109]
[1736877967398,7.5548,187.16,187.12,2.6734]
[1736877968395,2.6731,187.15,187.11,2.6736]
[1736877968597,17.25724109,187.16,187.02,12.37544109]
[1736877968792,12.37544109,187.13,186.99,21.91530371]
[1736877968994,2.6745,187.05,186.99,9.53986262]
[1736877969297,12.37544109,187.07,186.97,29.87261805]
[1736877969497,2.6749,187.03,186.96,12.37544109]
[1736877969700,10.603,187.06,186.96,12.37544109]
[1736877970299,10.603,187.06,186.99,2.6754]
[1736877970501,10.603,187.06,186.96,12.37544109]
[1736877970694,2.6748,187.04,187.0,2.6751]
[1736877971498,2.6748,187.03,187.0,2.6751]
[1736877971701,10.603,187.06,186.97,2.6756]
[1736877972801,10.603,187.06,186.93,12.37544109]
[1736877973004,10.603,187.06,186.98,2.6754]
[1736877973299,10.603,187.06,186.93,12.37544109]
[1736877973499,205.603,187.06,186.97,2.6756]
[1736877973699,2.6754,187.0,186.93,12.37544109]
[1736877974000,12.37544109,187.01,186.93,2.6761]
[1736877974201,12.37544109,187.01,186.9,15.57574109]
[1736877974601,195.0,187.03,186.95,2.6759]
[1736877975201,2.6755,186.99,186.95,2.6759]
[1736877975400,12.37544109,187.01,186.9,12.37544109]
[1736877975602,2.6759,186.95,186.87,12.37544109]
[1736877976101,2.6759,186.95,186.91,2.6764]
[1736877976504,4.7741,186.98,186.87,12.37544109]
[1736877976698,2.6761,186.94,186.9,2.6766]
[1736877977397,2.6761,186.94,186.89,2.6768]
[1736877979007,195.0,186.97,186.84,12.37544109]
[1736877979196,12.37544109,186.95,186.84,12.37544109]
[1736877980204,2.6765,186.91,186.88,2.6769]
[1736877980403,2.6765,186.91,186.84,12.37544109]
[1736877980802,2.6764,186.92,186.84,12.37544109]
[1736877981003,12.37544109,186.95,186.84,12.37544109]
[1736877982907,2.6764,186.92,186.89,2.6768]
[1736877983104,195.0,186.97,186.84,12.37544109]
[1736877983501,2.6761,186.94,186.79,3.2241]
[1736877983707,12.37544109,186.92,186.79,3.2241]
[1736877983907,18.01544109,186.92,186.79,15.59954109]
[1736877984903,2.6769,186.88,186.79,15.59954109]
[1736877985210,18.01544109,186.92,186.78,12.37544109]
[1736877985508,2.6769,186.89,186.78,12.37544109]
[1736877985807,18.01544109,186.92,186.81,113.12888157]
[1736877986108,18.01544109,186.92,186.81,100.75344048]
[1736877986402,12.37544109,186.89,186.81,100.75344048]
[1736877986600,4.8616,186.88,186.78,12.37544109]
[1736877987307,2.6774,186.85,186.78,12.37544109]
[1736877987507,4.8616,186.88,186.78,12.37544109]
[1736877988411,2.6772,186.86,186.78,12.37544109]
[1736877988706,4.8616,186.88,186.78,12.37544109]
[1736877988901,4.8616,186.88,186.87,2.6771]
[1736877989106,195.0,186.91,186.82,12.37544109]
[1736877989506,197.6765,186.91,186.82,12.37544109]
[1736877989910,197.6765,186.91,186.84,2.6774]
[1736877990210,2.6767,186.9,186.82,12.37544109]
[1736877990408,195.0,186.91,186.79,12.37544109]
[1736877990608,2.6773,186.86,186.83,2.6775]
[1736877990910,2.6773,186.86,186.79,12.37544109]
[1736877991107,14.04404109,186.89,186.81,2.6778]
[1736877991411,14.04404109,186.89,186.76,12.37544109]
[1736877991711,14.04404109,186.89,186.79,12.37544109]
[1736877991914,1.6686,186.89,186.79,12.37544109]
[1736877992118,1.6686,186.89,186.86,2.6771]
[1736877993217,4.3454,186.89,186.86,2.6771]
[1736877993517,1.6686,186.89,186.87,2.677]
[1736877993810,5.66,186.92,186.85,12.37544109]
[1736877994215,5.66,186.92,186.91,2.6765]
[1736877994516,2.6759,186.96,186.88,12.37544109]
[1736877994713,2.6759,186.96,186.93,2.6761]
[1736877995016,2.6757,186.97,186.93,2.6761]
[1736877995216,8.3357,186.97,186.94,2.676]
[1736877995515,2.6757,186.97,186.94,2.676]
[1736877997614,2.6759,186.96,186.92,2.6763]
[1736877998318,10.5934,186.99,186.92,2.6763]
[1736877998515,10.5934,186.99,186.93,2.6762]
[1736877998919,10.5934,186.99,186.87,19.79133684]
[1736877999518,2.6759,186.96,186.92,2.6762]
[1736877999717,10.5934,186.99,186.92,2.6762]
[1736878000116,2.6759,186.96,186.92,2.6762]
[1736878001419,2.6761,186.94,186.9,2.6765]
[1736878001812,10.5934,186.99,186.9,2.6765]
[1736878002618,2.676,186.95,186.89,2.6767]
[1736878002818,10.5934,186.99,186.89,2.6767]
[1736878003122,2.6763,186.93,186.87,2.677]
[1736878003321,5.64,186.92,186.81,21.39133684]
[1736878003924,5.64,186.92,186.77,61.33673612]
[1736878003925,195.0,186.91,186.76,29.87261805]
[1736878004216,19.79133684,186.87,186.76,29.87261805]
[1736878004413,2.6775,186.84,186.78,2.6783]
[1736878004617,2.6775,186.84,186.76,29.87261805]
[1736878004618,5.68,186.84,186.76,29.87261805]
[1736878005323,5.68,186.84,186.74,9.55304621]
[1736878006227,2.678,186.81,186.77,2.6784]